Cogmind - Beta 12 @@@ ROGUE MODE // 2023.03.19 @ 21:59:39 Player: Mr. Q Result: Destroyed by Y-45 Defender with Heavy Assault Rifle Performance ------------- Evolutions (1) 500 Regions Visited (3) 600 Robots Destroyed (31) 155 Value Destroyed (788) 788 Prototype IDs (0) 0 Alien Tech Used (0) 0 Bonus (75) 75 TOTAL SCORE: 2118 Bonus ------- High Alert Combat Kills 75 Cogmind --------- Core Integrity 0/400 Matter 251/300 Energy 261/265 System Corruption 1% Temperature Cool (11) Movement Walking (190) Ox1 Location -9/Storage Parts ------- > --- POWER (1) -------- Improved Ion Engine > --- PROPULSION (2) --- Aluminum Leg Aluminum Leg > --- UTILITY (4) ------ Heat Sink Seismic Detector Light Armor Plating Light Armor Plating > --- WEAPON (2) ------- Heavy Assault Rifle Shotgun > --- INVENTORY (5) ---- Aluminum Leg Aluminum Leg High-capacity Matter Pod (40) Heavy Assault Rifle Peak State ------------ > --- POWER ------------ Improved Ion Engine > --- PROPULSION ------- Wheel Compact Wheel > --- UTILITY ---------- Small Storage Unit Structural Scanner Improved Terrain Scanner Seismic Detector > --- WEAPON ----------- Assault Rifle Rocket Launcher > --- INVENTORY -------- Ion Engine Wheel High-capacity Matter Pod Visual Processing Unit Light Armor Plating Tractor Beam Light EM Pulse Cannon Grenade Launcher [Rating: 14] Favorites ----------- Power Ion Engine Engine Ion Engine Propulsion Wheel Leg Aluminum Leg Wheel Wheel Utility Seismic Detector Device Seismic Detector Storage Small Storage Unit Protection Light Armor Plating Weapon Assault Rifle Energy Gun Small Laser Energy Cannon Light EM Pulse Cannon Ballistic Gun Assault Rifle Launcher Grenade Launcher Special Weapon Mining Laser Build | -11 -10 -9 -9 ------- Run | Jun Mat Mat Sto Slots Evolved 2 | . . 2 . Power . | . . . . Propulsion . | . . . . Utility 2 | . . 2 . Weapon . | . . . . Parts Attached 42 | 7 5 4 26 Power 5 | 1 1 . 3 Engine 5 | 1 1 . 3 Core . | . . . . Reactor . | . . . . Propulsion 9 | 2 . . 7 Treads . | . . . . Leg 3 | . . . 3 Wheel 6 | 2 . . 4 Hover . | . . . . Flight . | . . . . Utility 12 | 2 1 2 7 Device 8 | 1 1 2 4 Storage 2 | 1 . . 1 Processor . | . . . . Hackware . | . . . . Protection 2 | . . . 2 Artifact . | . . . . Weapon 16 | 2 3 2 9 Energy Gun 3 | 1 . . 2 Energy Cannon 1 | . . . 1 Ballistic Gun 5 | 1 . 1 3 Ballistic Cannon . | . . . . Launcher 6 | . 2 1 3 Special Weapon 1 | . 1 . . Impact Weapon . | . . . . Slashing Weapon . | . . . . Piercing Weapon . | . . . . Special Melee Weapon . | . . . . Unidentified Prototypes . | . . . . Parts Lost 18 | . . 1 17 Power 2 | . . . 2 Propulsion 4 | . . . 4 Utility 5 | . . . 5 Weapon 7 | . . 1 6 Highest Loss Streak 11 | . . 1 11 To Critical Strikes . | . . . . Average Slot Usage (%) 85 | . 87 87 84 Engine 10 | . 13 11 9 Leg 6 | . . . 10 Wheel 10 | . 18 11 9 Device 21 | . 14 33 20 Storage 7 | . 14 11 5 Protection 6 | . . . 9 Energy Gun 2 | . 11 . 1 Ballistic Gun 9 | . . . 14 Launcher 6 | . 12 10 3 Special Weapon 2 | . 2 10 . Naked Turns . | . . . . Heaviest Build 21 | 14 15 17 21 Greatest Support 26 | 20 20 10 26 Greatest Overweight (x) 2 | 2 1 1 2 Average Overweight (x) . | . . 1 . Largest Inventory Capacity 8 | 8 8 8 8 Average Capacity 7 | 7 8 8 6 Most Carried 8 | 4 7 7 8 Average Carried 3 | 1 6 5 4 Final Capacity 8 | 8 8 8 5 Final Carried 7 | 4 7 7 4 Class Distribution -------------------- 78% | Mutant 21% | Scavenger-Mutant Dominant Class ---------------- Mutant | -10/Materials Mutant | -9/Materials Scavenger-Mutant | -9/Storage Resources | -11 -10 -9 -9 ----------- Run | Jun Mat Mat Sto Matter Collected 892 | 300 60 17 515 Remotely 52 | . . . 52 Salvage Created 912 | 117 70 29 696 Parts 72 | 12 2 4 54 Haulers Intercepted 2 | . 1 . 1 Recyclers Shooed 1 | 1 . . . Parts Field Recycled . | . . . . Retrieved Matter . | . . . . Parts Self-Destructed . | . . . . Prevented . | . . . . Kills | -11 -10 -9 -9 ------- Run | Jun Mat Mat Sto Combat Hostiles Destroyed 20 | . 1 3 16 Guns 9 | . . . 9 AOE 11 | . 1 3 7 Classes Destroyed 8 | 3 2 1 2 Worker 5 | 1 . . 4 Builder 1 | . . . 1 Tunneler 2 | 2 . . . Hauler 2 | . 1 . 1 Recycler 1 | 1 . . . Swarmer 4 | . . 2 2 Grunt 9 | . 1 1 7 Sentry 7 | . . . 7 Best Kill Streak 12 | 3 2 2 12 Combat Bots Only 6 | . 1 2 6 Max Kills in Single Turn 3 | 1 1 1 3 Gunslinging . | . . . . Exploded 2 | . 1 1 2 Melee . | . . . . Uniques/NPCs Destroyed . | . . . . Combat | -11 -10 -9 -9 -------- Run | Jun Mat Mat Sto Damage Taken 1825 | . 21 133 1671 Core 408 | . . 37 371 Absorbed by Shields . | . . . . Core Remaining (%) 100 | 100 100 . . Volleys Fired 59 | 10 4 9 36 Largest 2 | 2 2 2 2 Hottest 130 | 60 100 130 90 Shots Fired 105 | 20 7 10 68 Gun 80 | 20 3 3 54 Cannon 2 | . . . 2 Launcher 21 | . 3 6 12 Special 2 | . 1 1 . Kinetic 52 | 10 . 3 39 Thermal 15 | 10 4 1 . Explosive 21 | . 3 6 12 Electromagnetic 17 | . . . 17 Robot Hit Streak 22 | 5 2 5 22 Robot Miss Streak 4 | 2 2 2 4 Penetration Max . | . . . . Secondary Targets . | . . . . Shots Hit Robots 63 | 11 3 6 43 Core Hits 51 | 4 3 4 40 Critical Kills 1 | . . . 1 Critical Parts Destroyed . | . . . . Critical Strikes 1 | . . . 1 Destroy 1 | . . . 1 Melee Attacks . | . . . . Impact . | . . . . Slashing . | . . . . Piercing . | . . . . Sneak Attacks . | . . . . Combat Hostiles . | . . . . Follow-up Attacks . | . . . . Damage Inflicted 1844 | 132 137 341 1234 Guns 685 | 132 12 14 527 Cannons 18 | . . . 18 Explosions 1124 | . 125 327 672 Melee . | . . . . Ramming 17 | . . . 17 Kinetic 387 | 55 . 14 318 Thermal 89 | 77 12 . . Explosive 1124 | . 125 327 672 Electromagnetic 227 | . . . 227 Impact . | . . . . Slashing . | . . . . Piercing . | . . . . Highest Corruption 1 | . . . 1 Average Corruption 1 | . . . 1 Corruption Purged . | . . . . Corruption Blocked . | . . . . Effects 4 | . . . 4 Data Loss (minor) 2 | . . . 2 Misfires 2 | . . . 2 Overload Shots . | . . . . Overflow Damage 29 | . . 29 . Projectiles . | . . . . Explosions 29 | . . 29 . Melee . | . . . . Knockbacks . | . . . . Impact . | . . . . Kinetic . | . . . . Secondary . | . . . . Self-Inflicted Damage 116 | . . 49 67 Shots 4 | . . 2 2 Rammed 3 | . . . 3 Targets Rammed 4 | . . . 4 Kicked 1 | . . . 1 Crushed . | . . . . Highest Temperature 81 | . 44 15 81 Average Temperature 21 | . 16 6 25 Received Heat Transfer 579 | . 12 6 561 Siege Activations . | . . . . Robots Corrupted . | . . . . Combat Hostiles . | . . . . Parts Fried 1 | . . . 1 Impact Corruptions . | . . . . Robots Melted . | . . . . Combat Hostiles . | . . . . Parts Melted . | . . . . Heat Transferred 200 | 175 25 . . Parts Sabotaged . | . . . . Parts Stolen . | . . . . Parts Stripped . | . . . . Power Chain Reactions . | . . . . Missiles Intercepted . | . . . . Alert | -11 -10 -9 -9 ------- Run | Jun Mat Mat Sto Peak Influence 564 | 20 74 141 564 Initial 59 | . . 31 59 Average 134 | 7 58 47 332 Maximum Alert Level 2 | . . . 2 Low Security (%) 72 | 100 100 100 24 Level 1 16 | . . . 44 Level 2 11 | . . . 30 Level 3 . | . . . . Level 4 . | . . . . Level 5 . | . . . . High Security . | . . . . Max Security . | . . . . Squads Dispatched 7 | . 1 2 4 Investigation 1 | . 1 . . Extermination . | . . . . Reinforcement 5 | . . 2 3 Assault . | . . . . Garrison 1 | . . . 1 Intercept . | . . . . Searches Triggered . | . . . . Construction Impeded 1 | . . . 1 Haulers Reinforced . | . . . . Active Scanning Responses . | . . . . Cargo Convoy Interrupts . | . . . . Stealth | -11 -10 -9 -9 --------- Run | Jun Mat Mat Sto Distress Signals 4 | . . 1 3 Communications Jammed . | . . . . Distress Signals . | . . . . Times Spotted 34 | . 1 8 25 Peak Tracking Total 9 | . 1 6 9 Tactical Retreats . | . . . . Traps | -11 -10 -9 -9 ------- Run | Jun Mat Mat Sto Traps Triggered 4 | . 2 . 2 Indirectly . | . . . . Trap Hack Attempts . | . . . . Triggered . | . . . . Disarmed . | . . . . Reprogrammed . | . . . . Reused . | . . . . Traps Extracted . | . . . . Installed . | . . . . Triggered . | . . . . Machines | -11 -10 -9 -9 ---------- Run | Jun Mat Mat Sto Machines Disabled 8 | . 2 1 5 Max in Single Turn 1 | . 1 1 1 Machines Repaired . | . . . . Machines Sabotaged . | . . . . Overloaded Fab Kills . | . . . . Hacking | -11 -10 -9 -9 --------- Run | Jun Mat Mat Sto Machines Accessed 4 | . 1 1 2 Terminals 4 | . 1 1 2 Fabricators . | . . . . Repair Stations . | . . . . Recycling Units . | . . . . Scanalyzers . | . . . . Garrison Access . | . . . . Total Hacks 9 | . 4 2 3 Successful 6 | . 2 2 2 Failed 3 | . 2 . 1 Catastrophic . | . . . . Database Lockouts . | . . . . Manual 1 | . . . 1 Terminals 9 | . 4 2 3 Fabricators . | . . . . Repair Stations . | . . . . Recycling Units . | . . . . Scanalyzers . | . . . . Garrison Access . | . . . . Terminal Hacks 6 | . 2 2 2 Record 1 | . 1 . . Open Door 2 | . . . 2 Branch Access Points 1 | . . 1 . Emergency Access Points 2 | . 1 1 . Fabricator Hacks . | . . . . Repair Station Hacks . | . . . . Recycling Unit Hacks . | . . . . Scanalyzer . | . . . . Garrison Access Hacks . | . . . . Unauthorized Hacks . | . . . . Terminals . | . . . . Fabricators . | . . . . Repair Stations . | . . . . Recycling Units . | . . . . Scanalyzers . | . . . . Garrison Access . | . . . . Data Cores Recovered . | . . . . Used . | . . . . Hacking Detections 3 | . 1 . 2 Full Trace Events . | . . . . Feedback Events . | . . . . Feedback Blocked . | . . . . Robot Schematics Acquired . | . . . . Robots Built . | . . . . Authchips . | . . . . Time . | . . . . Total Robot Build Rating . | . . . . Part Schematics Acquired . | . . . . Parts Built . | . . . . Authchips . | . . . . Time . | . . . . Total Part Build Rating . | . . . . Parts Repaired . | . . . . Time . | . . . . Parts Recycled . | . . . . Recycled Matter . | . . . . Retrieved Matter . | . . . . Retrieved Components . | . . . . Parts Scanalyzed . | . . . . Part Schematics Acquired . | . . . . Parts Damaged . | . . . . Bothacking | -11 -10 -9 -9 ------------ Run | Jun Mat Mat Sto Used RIF Installer . | . . . . Robots Hacked . | . . . . Non-combat . | . . . . Combat . | . . . . Robot Hacks Applied . | . . . . Relay Couplers Released . | . . . . Fabnet Peak Effective % . | . . . . Robots Rewired . | . . . . Allies Hacked . | . . . . Hacks Repelled . | . . . . Allies | -11 -10 -9 -9 -------- Run | Jun Mat Mat Sto Total Allies . | . . . . Largest Group . | . . . . Highest-Rated Group . | . . . . Highest-Rated Ally . | . . . . Total Orders . | . . . . Ally Attacks . | . . . . Total Damage . | . . . . Kills . | . . . . Allies Corrupted . | . . . . Allies Melted . | . . . . Intel | -11 -10 -9 -9 ------- Run | Jun Mat Mat Sto Robot Analysis Total . | . . . . Derelict Logs Recovered . | . . . . Drone Launches . | . . . . Drone Recoveries . | . . . . Exploration | -11 -10 -9 -9 ------------- Run | Jun Mat Mat Sto Turns Passed 1821 | 818 153 185 665 Spaces Moved 868 | 227 145 100 396 Core 48 | 26 . . 22 Treads . | . . . . Legs 160 | . . . 160 Wheels 660 | 201 145 100 214 Hover . | . . . . Flight . | . . . . Fastest Speed 50 | 50 80 95 80 Average Speed 104 | 83 89 95 124 Slowest Speed 190 | 150 95 95 190 Overloaded Moves . | . . . . Propulsion Burnouts . | . . . . Robots Hopped . | . . . . Cave-ins Triggered . | . . . . Exploration Rate (%) 29 | 14 26 14 65 Regions Visited 3 Branch Regions 1 Pre-discovered Areas . | . . . . Known Exits Taken 1 | . . 1 . Unknown Exits Taken 2 | 1 1 . . Scrap Searched . | . . . . Spaces Dug 1 | . 1 . . Terrain Destroyed 114 | . 15 31 68 Melee . | . . . . Projectile 2 | . 1 1 . AOE 112 | . 14 30 68 Terrain Rammed . | . . . . Walls Destroyed . | . . . . Machines Disabled . | . . . . Actions | -11 -10 -9 -9 --------- Run | Jun Mat Mat Sto Total 1660 | 832 156 173 499 Wait 664 | 585 . 59 20 Move 865 | 226 144 99 396 Hop . | . . . . Pick Up 17 | 4 2 2 9 Fast Attach 20 | 7 3 . 10 Attach 12 | . . 2 10 Detach 2 | . 1 . 1 Swap 10 | . 2 2 6 Drop 7 | . . . 7 Fire 59 | 10 4 9 36 Melee . | . . . . Ram 3 | . . . 3 Kick 1 | . . . 1 Crush . | . . . . Escape Stasis . | . . . . Rewire . | . . . . Trap . | . . . . Miscellaneous . | . . . . Route ------- -11/Junkyard -10/Materials -9/Materials (discovered 4 exits: Min x2 / *Sto x2) -9/Storage History --------- Turn | Location | Event 9 | -11/Junkyard | Discovered new exit (range 15) 819 | -11/Junkyard | Entered Materials 820 | -10/Materials | Build established: Mutant 963 | -10/Materials | Discovered new exit (range 3) 972 | -10/Materials | Entered another Materials area 972 | -9/Materials | Evolved 2 slots: Utility x2 981 | -9/Materials | Identified exit to Mines 981 | -9/Materials | Identified exit to Storage 1157 | -9/Materials | Entered Storage 1323 | -9/Storage | Garrison activated, responded to threat 1434 | -9/Storage | Core integrity fell below 50% 1466 | -9/Storage | Lost 11 parts (1p3n4u3w) 1500 | -9/Storage | Core integrity fell below 20% 1525 | -9/Storage | Lost 6 parts (1p1n1u3w) 1822 | -9/Storage | Destroyed by Y-45 Defender with Heavy Assault Rifle Last Messages --------------- 01574_ Dropped Corrupted Lgt. Treads. 01577_ Acquired Aluminum Leg. 01586_ Connecting with Door Terminal... 01641_ Triggered EMP Trap. 01641_ A bubble of electromagnetic force engulfs the area. 01644_ K-01 Serf cleans the Compression Vault. 01648_ K-01 Serf collects debris. 01709_ System corrupted: FCS attempts to trigger Shotgun. 01709_ System corrupted: Shotgun misfires. 01730_ U-05 Engineer lays Concrete. 01733_ K-01 Serf cleans the Storage Shell. 01792_ O-16 Technician sends out distress signal. 01792_ O-16 Technician: "IFF HANDSHAKE FAILED. SECURING TERMINAL." 01800_ ALERT: Hostiles spotted, dispatching reinforcements to Terminal S009. 01804_ System corrupted: Component data lost. 01805_ Kicked K-01 Serf. 01814_ O-16 Technician: "IFF HANDSHAKE FAILED. SECURING TERMINAL." 01819_ ALERT: Hostiles spotted, dispatching reinforcements to Terminal S002. Map ----- +----------------------------------------------------+ | | | | | | | | | | | | | | | ?????????????????????????????????????????? | | ?????????????????????????????????????????? | | ??????????????????????????###"?"######???? | | ??????????????????????????###" "######???? | | ??????????????????????????## ##???? | | ?????????????????????????### """ ##???? | | ?????????????????????????### """ ###??? | | ?????????????????????????##" "" ###??? | | ?????????????????????????##T ###??? | | ?????????????????????????##" ###??? | | ?????????????????????????### " = ###### | | ????????????????????????#### ###### | | ?????????????????????????### * =!=[ + | | ?????????????????????????#######+######### | | ???#?????????????########### =#* ## | | ??? #####+#### ##### [# | | ??# Y g = #= | | ??# Y T ######## # " | | ??# @ ######## + | | ?????????######### #???#### # | | ?????????????????## ####### # # | | ??????????????????# ####### # # """T"" | | ??????????????????# # # # ###### | | ??????????????????# # #% ######## | | ??????????????????# # # #####??? | | ??????????????????# + # # # ?? | | ??????????????????+ # # # " ?? | | ??????????????????# # # # !! | | ??????????????????# # # + " | | ?????????????????## ######+## ##T# !!! | | ?????????????????? ##### ## #### !!! | | ?????????????????? ??????## ######## | | ?????????????????? T ??????## ######## | | ?????????????????? ??#???## """##??? | | ?????????????????# ##### ## R"# ??? | | ?????????????????###+#######+## """# ??? | | ?????????????????## # #### ? # | | ???????????????? ## # #### # | | ?????????????????## ?"""" + ##???? # | | ???????????????#?????"""" # #### + | | ?????????????????????"""" # #### # | | ???????????????????? # # | | ?????????????????## # # | +----------------------------------------------------+ Best States ------------- Heat Dissipation 38 Energy Generation 12 Energy Capacity 265 Matter Stores 300 Matter Capacity 300 Sight Range 16 Terrain Scan Range 16 Terrain Scan Density 10 Armor Coverage 300 Evasion (%) 55 Item Schematics ----------------- None Robot Schematics ------------------ None Fabricated ------------ Nothing Alien Tech Used ----------------- None Achievements -------------- None Challenges ------------ None Game ------ Seed LaserThiefLog Manual? 0 Play Time 00:16:49 Cumulative 35.2 hours Start 2023.03.19 @ 21:40:37 End 2023.03.19 @ 21:59:39 Sessions 1 Manual Loads 0 Difficulty Rogue Special Mode None Game No. 35 Rogue 15 Adventurer 2 Explorer 18 Win Type - Total 2 Types 2/0/0/0/0/0/0/0/0 Lore% 29 Gallery% 43 Achievement% 32 Wizard Run 0 Options --------- ASCII 0 Keyboard 0 Movement Numpad Keybinds 0 Fullscreen 1 Font 24/Smallcaps Map View 76x50 Tactical HUD 1 Map Filters NONE Filters NONE Steam 1 RUN: 6dd6f314-8d11-43f2-b104-a3811fe229af